Workbook

Sheet Simple Data
A1: Time | B1: Sample | C1: Blank | K1: Average sample | L1: =AVERAGE(B:B) -> 8.098790323 | N1: %T | O1: ABS | P1: Wave Length
A2: 21:14:54 | B2: 0 | C2: 7 | K2: Average Blank | L2: =AVERAGE(C:C) -> 77.14112903 | M2: 1 | N2: =(((B2/L$2)*100)) -> 0 | O2: =-LOG(N2/100) ->  | P2: 750 | Q2: =750-300 -> 450
A3: 21:14:55 | B3: 0 | C3: 9 | M3: 2 | N3: =(((B3/L$2)*100)) -> 0 | P3: =P2-0.9 -> 749.1 | Q3: =Q2/500 -> 0.9
A4: 21:14:55 | B4: 0 | C4: 7 | M4: 3 | N4: 0 | P4: =P3-0.9 -> 748.2
A5: 21:14:55 | B5: 0 | C5: 6 | M5: 4 | N5: 0 | P5: 747.3
A6: 21:14:55 | B6: 0 | C6: 6 | M6: 5 | N6: 0 | P6: 746.4
A7: 21:14:55 | B7: 0 | C7: 7 | M7: 6 | N7: 0 | P7: 745.5
A8: 21:14:55 | B8: 0 | C8: 7 | M8: 7 | N8: 0 | P8: 744.6
A9: 21:14:55 | B9: 0 | C9: 7 | M9: 8 | N9: 0 | P9: 743.7
A10: 21:14:55 | B10: 0 | C10: 7 | M10: 9 | N10: 0 | P10: 742.8
A11: 21:14:55 | B11: 0 | C11: 7 | M11: 10 | N11: 0 | P11: 741.9
A12: 21:14:55 | B12: 0 | C12: 10 | M12: 11 | N12: 0 | P12: 741
A13: 21:14:55 | B13: 0 | C13: 9 | M13: 12 | N13: 0 | P13: 740.1
A14: 21:14:55 | B14: 0 | C14: 10 | M14: 13 | N14: 0 | P14: 739.2
A15: 21:14:55 | B15: 0 | C15: 6 | M15: 14 | N15: 0 | P15: 738.3
A16: 21:14:55 | B16: 0 | C16: 10 | M16: 15 | N16: 0 | P16: 737.4
A17: 21:14:56 | B17: 0 | C17: 9 | M17: 16 | N17: 0 | P17: 736.5
A18: 21:14:56 | B18: 0 | C18: 9 | M18: 17 | N18: 0 | P18: 735.6
A19: 21:14:56 | B19: 0 | C19: 9 | M19: 18 | N19: 0 | P19: 734.7
A20: 21:14:56 | B20: 0 | C20: 10 | M20: 19 | N20: 0 | P20: 733.8
A21: 21:14:56 | B21: 0 | C21: 10 | M21: 20 | N21: 0 | P21: 732.9
A22: 21:14:56 | B22: 0 | C22: 10 | M22: 21 | N22: 0 | P22: 732
A23: 21:14:56 | B23: 0 | C23: 11 | M23: 22 | N23: 0 | P23: 731.1
A24: 21:14:56 | B24: 0 | C24: 10 | M24: 23 | N24: 0 | P24: 730.2
A25: 21:14:56 | B25: 0 | C25: 10 | M25: 24 | N25: 0 | P25: 729.3
A26: 21:14:56 | B26: 0 | C26: 10 | M26: 25 | N26: 0 | P26: 728.4
A27: 21:14:56 | B27: 0 | C27: 10 | M27: 26 | N27: 0 | P27: 727.5
A28: 21:14:56 | B28: 0 | C28: 12 | M28: 27 | N28: 0 | P28: 726.6
A29: 21:14:56 | B29: 0 | C29: 10 | M29: 28 | N29: 0 | P29: 725.7
A30: 21:14:56 | B30: 0 | C30: 13 | M30: 29 | N30: 0 | P30: 724.8
A31: 21:14:57 | B31: 0 | C31: 10 | M31: 30 | N31: 0 | P31: 723.9
A32: 21:14:57 | B32: 0 | C32: 12 | M32: 31 | N32: 0 | P32: 723
A33: 21:14:57 | B33: 0 | C33: 10 | M33: 32 | N33: 0 | P33: 722.1
A34: 21:14:57 | B34: 0 | C34: 12 | M34: 33 | N34: 0 | P34: 721.2
A35: 21:14:57 | B35: 0 | C35: 11 | M35: 34 | N35: 0 | P35: 720.3
A36: 21:14:57 | B36: 0 | C36: 12 | M36: 35 | N36: 0 | P36: 719.4
A37: 21:14:57 | B37: 0 | C37: 14 | M37: 36 | N37: 0 | P37: 718.5
A38: 21:14:57 | B38: 0 | C38: 12 | M38: 37 | N38: 0 | P38: 717.6
A39: 21:14:57 | B39: 0 | C39: 18 | M39: 38 | N39: 0 | P39: 716.7
A40: 21:14:57 | B40: 0 | C40: 12 | M40: 39 | N40: 0 | P40: 715.8
A41: 21:14:57 | B41: 0 | C41: 18 | M41: 40 | N41: 0 | P41: 714.9
A42: 21:14:57 | B42: 0 | C42: 12 | M42: 41 | N42: 0 | P42: 714
A43: 21:14:57 | B43: 0 | C43: 16 | M43: 42 | N43: 0 | P43: 713.1 | Q43: =11500/200 -> 57.5
A44: 21:14:57 | B44: 0 | C44: 13 | M44: 43 | N44: 0 | P44: 712.2 | Q44: =200*57 -> 11400
A45: 21:14:57 | B45: 0 | C45: 14 | M45: 44 | N45: 0 | P45: 711.3
A46: 21:14:58 | B46: 0 | C46: 14 | M46: 45 | N46: 0 | P46: 710.4
A47: 21:14:58 | B47: 0 | C47: 15 | M47: 46 | N47: 0 | P47: 709.5 | Q47: =11500/500 -> 23
A48: 21:14:58 | B48: 0 | C48: 18 | M48: 47 | N48: 0 | P48: 708.6
A49: 21:14:58 | B49: 0 | C49: 15 | M49: 48 | N49: 0 | P49: 707.7
A50: 21:14:58 | B50: 0 | C50: 19 | M50: 49 | N50: 0 | P50: 706.8
A51: 21:14:58 | B51: 0 | C51: 15 | M51: 50 | N51: 0 | P51: 705.9
A52: 21:14:58 | B52: 0 | C52: 20 | M52: 51 | N52: 0 | P52: 705
A53: 21:14:58 | B53: 0 | C53: 15 | M53: 52 | N53: 0 | P53: 704.1
A54: 21:14:58 | B54: 0 | C54: 21 | M54: 53 | N54: 0 | P54: 703.2
A55: 21:14:58 | B55: 0 | C55: 16 | M55: 54 | N55: 0 | P55: 702.3
A56: 21:14:58 | B56: 0 | C56: 21 | M56: 55 | N56: 0 | P56: 701.4
A57: 21:14:58 | B57: 0 | C57: 15 | M57: 56 | N57: 0 | P57: 700.5
A58: 21:14:58 | B58: 0 | C58: 20 | M58: 57 | N58: 0 | P58: 699.6
A59: 21:14:58 | B59: 0 | C59: 16 | M59: 58 | N59: 0 | P59: 698.7
A60: 21:14:59 | B60: 0 | C60: 22 | M60: 59 | N60: 0 | P60: 697.8
A61: 21:14:59 | B61: 0 | C61: 19 | M61: 60 | N61: 0 | P61: 696.9
A62: 21:14:59 | B62: 0 | C62: 21 | M62: 61 | N62: 0 | P62: 696
A63: 21:14:59 | B63: 0 | C63: 21 | M63: 62 | N63: 0 | P63: 695.1
A64: 21:14:59 | B64: 0 | C64: 22 | M64: 63 | N64: 0 | P64: 694.2
A65: 21:14:59 | B65: 0 | C65: 25 | M65: 64 | N65: 0 | P65: 693.3
A66: 21:14:59 | B66: 0 | C66: 21 | M66: 65 | N66: 0 | P66: 692.4
A67: 21:14:59 | B67: 0 | C67: 28 | M67: 66 | N67: =(((B67/L$2)*100)) -> 0 | O67: =-LOG(N67/100) ->  | P67: 691.5
A68: 21:14:59 | B68: 0 | C68: 22 | M68: 67 | N68: 0 | P68: =P67-0.9 -> 690.6
A69: 21:14:59 | B69: 1 | C69: 31 | M69: 68 | N69: 1.296325336 | O69: 1.887285991 | P69: 689.7
A70: 21:14:59 | B70: 0 | C70: 22 | M70: 69 | N70: 0 | P70: 688.8
A71: 21:14:59 | B71: 0 | C71: 33 | M71: 70 | N71: 0 | P71: 687.9
A72: 21:14:59 | B72: 0 | C72: 21 | M72: 71 | N72: 0 | P72: 687
A73: 21:14:59 | B73: 0 | C73: 30 | M73: 72 | N73: 0 | P73: 686.1
A74: 21:15:00 | B74: 0 | C74: 23 | M74: 73 | N74: 0 | P74: 685.2
A75: 21:15:00 | B75: 2 | C75: 28 | M75: 74 | N75: 2.592650672 | O75: 1.586255995 | P75: 684.3
A76: 21:15:00 | B76: 0 | C76: 28 | M76: 75 | N76: 0 | P76: 683.4
A77: 21:15:00 | B77: 0 | C77: 25 | M77: 76 | N77: 0 | P77: 682.5
A78: 21:15:00 | B78: 0 | C78: 38 | M78: 77 | N78: 0 | P78: 681.6
A79: 21:15:00 | B79: 0 | C79: 25 | M79: 78 | N79: 0 | P79: 680.7
A80: 21:15:00 | B80: 0 | C80: 37 | M80: 79 | N80: 0 | P80: 679.8
A81: 21:15:00 | B81: 0 | C81: 24 | M81: 80 | N81: 0 | P81: 678.9
A82: 21:15:00 | B82: 0 | C82: 36 | M82: 81 | N82: 0 | P82: 678
A83: 21:15:00 | B83: 0 | C83: 28 | M83: 82 | N83: 0 | P83: 677.1
A84: 21:15:00 | B84: 1 | C84: 31 | M84: 83 | N84: 1.296325336 | O84: 1.887285991 | P84: 676.2
A85: 21:15:00 | B85: 1 | C85: 41 | M85: 84 | N85: 1.296325336 | O85: 1.887285991 | P85: 675.3
A86: 21:15:00 | B86: 1 | C86: 28 | M86: 85 | N86: 1.296325336 | O86: 1.887285991 | P86: 674.4
A87: 21:15:00 | B87: 1 | C87: 35 | M87: 86 | N87: 1.296325336 | O87: 1.887285991 | P87: 673.5
A88: 21:15:01 | B88: 1 | C88: 42 | M88: 87 | N88: 1.296325336 | O88: 1.887285991 | P88: 672.6
A89: 21:15:01 | B89: 1 | C89: 33 | M89: 88 | N89: 1.296325336 | O89: 1.887285991 | P89: 671.7
A90: 21:15:01 | B90: 1 | C90: 49 | M90: 89 | N90: 1.296325336 | O90: 1.887285991 | P90: 670.8
A91: 21:15:01 | B91: 1 | C91: 32 | M91: 90 | N91: 1.296325336 | O91: 1.887285991 | P91: 669.9
A92: 21:15:01 | B92: 1 | C92: 54 | M92: 91 | N92: 1.296325336 | O92: 1.887285991 | P92: 669
A93: 21:15:01 | B93: 1 | C93: 33 | M93: 92 | N93: 1.296325336 | O93: 1.887285991 | P93: 668.1
A94: 21:15:01 | B94: 3 | C94: 54 | M94: 93 | N94: 3.888976008 | O94: 1.410164736 | P94: 667.2
A95: 21:15:01 | B95: 1 | C95: 32 | M95: 94 | N95: 1.296325336 | O95: 1.887285991 | P95: 666.3
A96: 21:15:01 | B96: 2 | C96: 50 | M96: 95 | N96: 2.592650672 | O96: 1.586255995 | P96: 665.4
A97: 21:15:01 | B97: 1 | C97: 32 | M97: 96 | N97: 1.296325336 | O97: 1.887285991 | P97: 664.5
A98: 21:15:01 | B98: 1 | C98: 42 | M98: 97 | N98: 1.296325336 | O98: 1.887285991 | P98: 663.6
A99: 21:15:01 | B99: 2 | C99: 32 | M99: 98 | N99: 2.592650672 | O99: 1.586255995 | P99: 662.7
A100: 21:15:01 | B100: 1 | C100: 45 | M100: 99 | N100: 1.296325336 | O100: 1.887285991 | P100: 661.8
A101: 21:15:01 | B101: 2 | C101: 40 | M101: 100 | N101: 2.592650672 | O101: 1.586255995 | P101: 660.9
A102: 21:15:01 | B102: 2 | C102: 45 | M102: 101 | N102: 2.592650672 | O102: 1.586255995 | P102: 660
A103: 21:15:02 | B103: 2 | C103: 51 | M103: 102 | N103: 2.592650672 | O103: 1.586255995 | P103: 659.1
A104: 21:15:02 | B104: 0 | C104: 44 | M104: 103 | N104: 0 | P104: 658.2
A105: 21:15:02 | B105: 2 | C105: 59 | M105: 104 | N105: 2.592650672 | O105: 1.586255995 | P105: 657.3
A106: 21:15:02 | B106: 2 | C106: 44 | M106: 105 | N106: 2.592650672 | O106: 1.586255995 | P106: 656.4
A107: 21:15:02 | B107: 3 | C107: 68 | M107: 106 | N107: 3.888976008 | O107: 1.410164736 | P107: 655.5
A108: 21:15:02 | B108: 3 | C108: 42 | M108: 107 | N108: 3.888976008 | O108: 1.410164736 | P108: 654.6
A109: 21:15:02 | B109: 2 | C109: 75 | M109: 108 | N109: 2.592650672 | O109: 1.586255995 | P109: 653.7
A110: 21:15:02 | B110: 2 | C110: 42 | M110: 109 | N110: 2.592650672 | O110: 1.586255995 | P110: 652.8
A111: 21:15:02 | B111: 4 | C111: 72 | M111: 110 | N111: 5.185301343 | O111: 1.285226 | P111: 651.9
A112: 21:15:02 | B112: 3 | C112: 41 | M112: 111 | N112: 3.888976008 | O112: 1.410164736 | P112: 651
A113: 21:15:02 | B113: 3 | C113: 68 | M113: 112 | N113: 3.888976008 | O113: 1.410164736 | P113: 650.1
A114: 21:15:02 | B114: 3 | C114: 41 | M114: 113 | N114: 3.888976008 | O114: 1.410164736 | P114: 649.2
A115: 21:15:02 | B115: 2 | C115: 66 | M115: 114 | N115: 2.592650672 | O115: 1.586255995 | P115: 648.3
A116: 21:15:02 | B116: 3 | C116: 41 | M116: 115 | N116: 3.888976008 | O116: 1.410164736 | P116: 647.4
A117: 21:15:03 | B117: 3 | C117: 64 | M117: 116 | N117: 3.888976008 | O117: 1.410164736 | P117: 646.5
A118: 21:15:03 | B118: 3 | C118: 41 | M118: 117 | N118: 3.888976008 | O118: 1.410164736 | P118: 645.6
A119: 21:15:03 | B119: 3 | C119: 63 | M119: 118 | N119: 3.888976008 | O119: 1.410164736 | P119: 644.7
A120: 21:15:03 | B120: 4 | C120: 45 | M120: 119 | N120: 5.185301343 | O120: 1.285226 | P120: 643.8
A121: 21:15:03 | B121: 3 | C121: 62 | M121: 120 | N121: 3.888976008 | O121: 1.410164736 | P121: 642.9
A122: 21:15:03 | B122: 4 | C122: 60 | M122: 121 | N122: 5.185301343 | O122: 1.285226 | P122: 642
A123: 21:15:03 | B123: 4 | C123: 59 | M123: 122 | N123: 5.185301343 | O123: 1.285226 | P123: 641.1
A124: 21:15:03 | B124: 3 | C124: 73 | M124: 123 | N124: 3.888976008 | O124: 1.410164736 | P124: 640.2
A125: 21:15:03 | B125: 4 | C125: 58 | M125: 124 | N125: 5.185301343 | O125: 1.285226 | P125: 639.3
A126: 21:15:03 | B126: 4 | C126: 84 | M126: 125 | N126: 5.185301343 | O126: 1.285226 | P126: 638.4
A127: 21:15:03 | B127: 4 | C127: 56 | M127: 126 | N127: 5.185301343 | O127: 1.285226 | P127: 637.5
A128: 21:15:03 | B128: 4 | C128: 95 | M128: 127 | N128: 5.185301343 | O128: 1.285226 | P128: 636.6
A129: 21:15:03 | B129: 5 | C129: 51 | M129: 128 | N129: 6.481626679 | O129: 1.188315987 | P129: 635.7
A130: 21:15:03 | B130: 4 | C130: 86 | M130: 129 | N130: 5.185301343 | O130: 1.285226 | P130: 634.8
A131: 21:15:04 | B131: 4 | C131: 50 | M131: 130 | N131: =(((B131/L$2)*100)) -> 5.185301343 | O131: =-LOG(N131/100) -> 1.285226 | P131: 633.9
A132: 21:15:04 | B132: 4 | C132: 83 | M132: 131 | N132: 5.185301343 | O132: 1.285226 | P132: =P131-0.9 -> 633
A133: 21:15:04 | B133: 5 | C133: 49 | M133: 132 | N133: 6.481626679 | O133: 1.188315987 | P133: 632.1
A134: 21:15:04 | B134: 5 | C134: 81 | M134: 133 | N134: 6.481626679 | O134: 1.188315987 | P134: 631.2
A135: 21:15:04 | B135: 5 | C135: 49 | M135: 134 | N135: 6.481626679 | O135: 1.188315987 | P135: 630.3
A136: 21:15:04 | B136: 5 | C136: 76 | M136: 135 | N136: 6.481626679 | O136: 1.188315987 | P136: 629.4
A137: 21:15:04 | B137: 6 | C137: 59 | M137: 136 | N137: 7.777952015 | O137: 1.10913474 | P137: 628.5
A138: 21:15:04 | B138: 5 | C138: 76 | M138: 137 | N138: 6.481626679 | O138: 1.188315987 | P138: 627.6
A139: 21:15:04 | B139: 6 | C139: 106 | M139: 138 | N139: 7.777952015 | O139: 1.10913474 | P139: 626.7
A140: 21:15:04 | B140: 6 | C140: 60 | M140: 139 | N140: 7.777952015 | O140: 1.10913474 | P140: 625.8
A141: 21:15:04 | B141: 6 | C141: 109 | M141: 140 | N141: 7.777952015 | O141: 1.10913474 | P141: 624.9
A142: 21:15:04 | B142: 7 | C142: 59 | M142: 141 | N142: 9.074277351 | O142: 1.042187951 | P142: 624
A143: 21:15:04 | B143: 6 | C143: 103 | M143: 142 | N143: 7.777952015 | O143: 1.10913474 | P143: 623.1
A144: 21:15:04 | B144: 7 | C144: 55 | M144: 143 | N144: 9.074277351 | O144: 1.042187951 | P144: 622.2
A145: 21:15:04 | B145: 6 | C145: 86 | M145: 144 | N145: 7.777952015 | O145: 1.10913474 | P145: 621.3
A146: 21:15:05 | B146: 7 | C146: 68 | M146: 145 | N146: 9.074277351 | O146: 1.042187951 | P146: 620.4
A147: 21:15:05 | B147: 6 | C147: 82 | M147: 146 | N147: 7.777952015 | O147: 1.10913474 | P147: 619.5
A148: 21:15:05 | B148: 7 | C148: 89 | M148: 147 | N148: 9.074277351 | O148: 1.042187951 | P148: 618.6
A149: 21:15:05 | B149: 6 | C149: 74 | M149: 148 | N149: 7.777952015 | O149: 1.10913474 | P149: 617.7
A150: 21:15:05 | B150: 6 | C150: 119 | M150: 149 | N150: 7.777952015 | O150: 1.10913474 | P150: 616.8
A151: 21:15:05 | B151: 9 | C151: 60 | M151: 150 | N151: 11.66692802 | O151: 0.9330434814 | P151: 615.9
A152: 21:15:05 | B152: 6 | C152: 97 | M152: 151 | N152: 7.777952015 | O152: 1.10913474 | P152: 615
A153: 21:15:05 | B153: 9 | C153: 58 | M153: 152 | N153: 11.66692802 | O153: 0.9330434814 | P153: 614.1
A154: 21:15:05 | B154: 7 | C154: 93 | M154: 153 | N154: 9.074277351 | O154: 1.042187951 | P154: 613.2
A155: 21:15:05 | B155: 9 | C155: 81 | M155: 154 | N155: 11.66692802 | O155: 0.9330434814 | P155: 612.3
A156: 21:15:05 | B156: 6 | C156: 91 | M156: 155 | N156: 7.777952015 | O156: 1.10913474 | P156: 611.4
A157: 21:15:05 | B157: 6 | C157: 105 | M157: 156 | N157: 7.777952015 | O157: 1.10913474 | P157: 610.5
A158: 21:15:05 | B158: 7 | C158: 86 | M158: 157 | N158: 9.074277351 | O158: 1.042187951 | P158: 609.6
A159: 21:15:05 | B159: 7 | C159: 130 | M159: 158 | N159: 9.074277351 | O159: 1.042187951 | P159: 608.7
A160: 21:15:06 | B160: 11 | C160: 97 | M160: 159 | N160: 14.25957869 | O160: 0.8458933057 | P160: 607.8
A161: 21:15:06 | B161: 9 | C161: 92 | M161: 160 | N161: 11.66692802 | O161: 0.9330434814 | P161: 606.9
A162: 21:15:06 | B162: 10 | C162: 120 | M162: 161 | N162: 12.96325336 | O162: 0.8872859909 | P162: 606
A163: 21:15:06 | B163: 10 | C163: 82 | M163: 162 | N163: 12.96325336 | O163: 0.8872859909 | P163: 605.1
A164: 21:15:06 | B164: 9 | C164: 134 | M164: 163 | N164: 11.66692802 | O164: 0.9330434814 | P164: 604.2
A165: 21:15:06 | B165: 10 | C165: 110 | M165: 164 | N165: 12.96325336 | O165: 0.8872859909 | P165: 603.3
A166: 21:15:06 | B166: 11 | C166: 84 | M166: 165 | N166: 14.25957869 | O166: 0.8458933057 | P166: 602.4
A167: 21:15:06 | B167: 11 | C167: 145 | M167: 166 | N167: 14.25957869 | O167: 0.8458933057 | P167: 601.5
A168: 21:15:06 | B168: 12 | C168: 99 | M168: 167 | N168: 15.55590403 | O168: 0.8081047448 | P168: 600.6
A169: 21:15:06 | B169: 11 | C169: 90 | M169: 168 | N169: 14.25957869 | O169: 0.8458933057 | P169: 599.7
A170: 21:15:06 | B170: 11 | C170: 129 | M170: 169 | N170: 14.25957869 | O170: 0.8458933057 | P170: 598.8
A171: 21:15:06 | B171: 12 | C171: 84 | M171: 170 | N171: 15.55590403 | O171: 0.8081047448 | P171: 597.9
A172: 21:15:06 | B172: 11 | C172: 107 | M172: 171 | N172: 14.25957869 | O172: 0.8458933057 | P172: 597
A173: 21:15:07 | B173: 12 | C173: 159 | M173: 172 | N173: 15.55590403 | O173: 0.8081047448 | P173: 596.1
A174: 21:15:07 | B174: 13 | C174: 132 | M174: 173 | N174: 16.85222937 | O174: 0.7733426386 | P174: 595.2
A175: 21:15:07 | B175: 12 | C175: 90 | M175: 174 | N175: 15.55590403 | O175: 0.8081047448 | P175: 594.3
A176: 21:15:07 | B176: 11 | C176: 151 | M176: 175 | N176: 14.25957869 | O176: 0.8458933057 | P176: 593.4
A177: 21:15:07 | B177: 13 | C177: 121 | M177: 176 | N177: 16.85222937 | O177: 0.7733426386 | P177: 592.5
A178: 21:15:07 | B178: 12 | C178: 94 | M178: 177 | N178: 15.55590403 | O178: 0.8081047448 | P178: 591.6
A179: 21:15:07 | B179: 13 | C179: 134 | M179: 178 | N179: 16.85222937 | O179: 0.7733426386 | P179: 590.7
A180: 21:15:07 | B180: 14 | C180: 107 | M180: 179 | N180: 18.1485547 | O180: 0.7411579552 | P180: 589.8
A181: 21:15:07 | B181: 11 | C181: 98 | M181: 180 | N181: 14.25957869 | O181: 0.8458933057 | P181: 588.9
A182: 21:15:07 | B182: 13 | C182: 134 | M182: 181 | N182: 16.85222937 | O182: 0.7733426386 | P182: 588
A183: 21:15:07 | B183: 13 | C183: 125 | M183: 182 | N183: 16.85222937 | O183: 0.7733426386 | P183: 587.1
A184: 21:15:07 | B184: 14 | C184: 100 | M184: 183 | N184: 18.1485547 | O184: 0.7411579552 | P184: 586.2
A185: 21:15:07 | B185: 14 | C185: 142 | M185: 184 | N185: 18.1485547 | O185: 0.7411579552 | P185: 585.3
A186: 21:15:08 | B186: 14 | C186: 169 | M186: 185 | N186: 18.1485547 | O186: 0.7411579552 | P186: 584.4
A187: 21:15:08 | B187: 15 | C187: 129 | M187: 186 | N187: 19.44488004 | O187: 0.7111947318 | P187: 583.5
A188: 21:15:08 | B188: 14 | C188: 100 | M188: 187 | N188: 18.1485547 | O188: 0.7411579552 | P188: 582.6
A189: 21:15:08 | B189: 14 | C189: 145 | M189: 188 | N189: 18.1485547 | O189: 0.7411579552 | P189: 581.7
A190: 21:15:08 | B190: 15 | C190: 117 | M190: 189 | N190: 19.44488004 | O190: 0.7111947318 | P190: 580.8
A191: 21:15:08 | B191: 14 | C191: 106 | M191: 190 | N191: 18.1485547 | O191: 0.7411579552 | P191: 579.9
A192: 21:15:08 | B192: 14 | C192: 156 | M192: 191 | N192: 18.1485547 | O192: 0.7411579552 | P192: 579
A193: 21:15:08 | B193: 16 | C193: 167 | M193: 192 | N193: 20.74120537 | O193: 0.6831660082 | P193: 578.1
A194: 21:15:08 | B194: 15 | C194: 133 | M194: 193 | N194: 19.44488004 | O194: 0.7111947318 | P194: 577.2
A195: 21:15:08 | B195: 15 | C195: 106 | M195: 194 | N195: =(((B195/L$2)*100)) -> 19.44488004 | O195: =-LOG(N195/100) -> 0.7111947318 | P195: 576.3
A196: 21:15:08 | B196: 14 | C196: 156 | M196: 195 | N196: 18.1485547 | O196: 0.7411579552 | P196: =P195-0.9 -> 575.4
A197: 21:15:08 | B197: 18 | C197: 197 | M197: 196 | N197: 23.33385605 | O197: 0.6320134858 | P197: 574.5
A198: 21:15:08 | B198: 18 | C198: 189 | M198: 197 | N198: 23.33385605 | O198: 0.6320134858 | P198: 573.6
A199: 21:15:09 | B199: 18 | C199: 151 | M199: 198 | N199: 23.33385605 | O199: 0.6320134858 | P199: 572.7
A200: 21:15:09 | B200: 16 | C200: 105 | M200: 199 | N200: 20.74120537 | O200: 0.6831660082 | P200: 571.8
... 301 more rows

Sheet Sheet1
B1: Linkit One - Live Data monitored in Excel and displayed using a Dashboard
K4: Value | L4: Degs | N4: x | O4: y
B5: Main Title | D5: Dial 1 - Average | J5: Min | K5: =D11 -> 0 | L5: 0 | N5: =50-(50*COS(RADIANS(L7))) ->  | O5: =50*SIN(RADIANS(L7)) -> 
J6: Max | K6: =D13 -> 500 | L6: 180 | N6: =50-(2*COS(RADIANS(L7+90))) ->  | O6: =2*SIN(RADIANS(L7+90)) -> 
B7: Units | J7: Actual | K7: =D9 ->  | L7: =((K7-K5)/(K6-K5))*180 ->  | N7: =50-(2*COS(RADIANS(L7-90))) ->  | O7: =2*SIN(RADIANS(L7-90)) -> 
J8: Scale1 | K8: =((K6-K5)/5)+K5 -> 100 | N8: =N5 ->  | O8: =O5 -> 
B9: Actual Value | D9: =AVERAGE('Simple Data'!#REF!) ->  | J9: Scale2 | K9: =((K6-K5)*2/5)+K5 -> 200 | N9: 50 | O9: 0
J10: Scale3 | K10: =((K6-K5)*3/5) + K5 -> 300
B11: Minimum Value | D11: 0 | J11: Scale4 | K11: =((K6-K5)*4/5) + K5 -> 400
B13: Maximum Value | D13: 500
K18: Value | L18: Degs | N18: x | O18: y
B19: Main Title | D19: Dial 2 - Max | J19: Min | K19: =D25 -> 0 | L19: 0 | N19: =50-(50*COS(RADIANS(L21))) ->  | O19: =50*SIN(RADIANS(L21)) -> 
J20: Max | K20: =D23+80 ->  | L20: 180 | N20: =50-(2*COS(RADIANS(L21+90))) ->  | O20: =2*SIN(RADIANS(L21+90)) -> 
B21: Units | J21: Actual | K21: =D23 ->  | L21: =((K21-K19)/(K20-K19))*180 ->  | N21: =50-(2*COS(RADIANS(L21-90))) ->  | O21: =2*SIN(RADIANS(L21-90)) -> 
J22: Scale1 | K22: =((K20-K19)/5)+K19 ->  | N22: =N19 ->  | O22: =O19 -> 
B23: Actual Value | D23: =MAX('Simple Data'!#REF!) ->  | J23: Scale2 | K23: =((K20-K19)*2/5)+K19 ->  | N23: 50 | O23: 0
J24: Scale3 | K24: =((K20-K19)*3/5) + K19 -> 
B25: Minimum Value | D25: 0 | J25: Scale4 | K25: =((K20-K19)*4/5) + K19 -> 
B27: Maximum Value | D27: 700
K32: Value | L32: Degs | N32: x | O32: y
B33: Main Title | D33: Dial 3 - Min | J33: Min | K33: -25 | L33: 0 | N33: =50-(50*COS(RADIANS(L35))) ->  | O33: =50*SIN(RADIANS(L35)) -> 
J34: Max | K34: 200 | L34: 180 | N34: =50-(2*COS(RADIANS(L35+90))) ->  | O34: =2*SIN(RADIANS(L35+90)) -> 
B35: Units | J35: Actual | K35: =D37 ->  | L35: =((K35-K33)/(K34-K33))*180 ->  | N35: =50-(2*COS(RADIANS(L35-90))) ->  | O35: =2*SIN(RADIANS(L35-90)) -> 
J36: Scale1 | K36: =((K34-K33)/5)+K33 -> 20 | N36: =N33 ->  | O36: =O33 -> 
B37: Actual Value | D37: =MIN('Simple Data'!#REF!) ->  | J37: Scale2 | K37: =((K34-K33)*2/5)+K33 -> 65 | N37: 50 | O37: 0
J38: Scale3 | K38: =((K34-K33)*3/5) + K33 -> 110
B39: Minimum Value | D39: 0 | J39: Scale4 | K39: =((K34-K33)*4/5) + K33 -> 155
B41: Maximum Value | D41: 100
C44: Chart 1 - Monitored value
C50: I) Trend Widget
D56: X | E56: Absorbance | F56: Transmitance | G56: Blank
D57: 1 | E57: ='Simple Data'!#REF! ->  | F57: ='Simple Data'!$B2 -> 0 | G57: ='Simple Data'!$C2 -> 7
D58: 2 | E58: ='Simple Data'!#REF! ->  | F58: ='Simple Data'!$B3 -> 0 | G58: ='Simple Data'!$C3 -> 9
D59: 3 | E59: ='Simple Data'!#REF! ->  | F59: ='Simple Data'!$B4 -> 0 | G59: ='Simple Data'!$C4 -> 7
D60: 4 | E60: ='Simple Data'!#REF! ->  | F60: ='Simple Data'!$B5 -> 0 | G60: ='Simple Data'!$C5 -> 6
D61: 5 | E61: ='Simple Data'!#REF! ->  | F61: ='Simple Data'!$B6 -> 0 | G61: ='Simple Data'!$C6 -> 6
D62: 6 | E62: ='Simple Data'!#REF! ->  | F62: ='Simple Data'!$B7 -> 0 | G62: ='Simple Data'!$C7 -> 7
D63: 7 | E63: ='Simple Data'!#REF! ->  | F63: ='Simple Data'!$B8 -> 0 | G63: ='Simple Data'!$C8 -> 7
D64: 8 | E64: ='Simple Data'!#REF! ->  | F64: ='Simple Data'!$B9 -> 0 | G64: ='Simple Data'!$C9 -> 7
D65: 9 | E65: ='Simple Data'!#REF! ->  | F65: ='Simple Data'!$B10 -> 0 | G65: ='Simple Data'!$C10 -> 7
D66: 10 | E66: ='Simple Data'!#REF! ->  | F66: ='Simple Data'!$B11 -> 0 | G66: ='Simple Data'!$C11 -> 7
D67: 11 | E67: ='Simple Data'!#REF! ->  | F67: ='Simple Data'!$B12 -> 0 | G67: ='Simple Data'!$C12 -> 10
D68: 12 | E68: ='Simple Data'!#REF! ->  | F68: ='Simple Data'!$B13 -> 0 | G68: ='Simple Data'!$C13 -> 9
D69: 13 | E69: ='Simple Data'!#REF! ->  | F69: ='Simple Data'!$B14 -> 0 | G69: ='Simple Data'!$C14 -> 10
D70: 14 | E70: ='Simple Data'!#REF! ->  | F70: ='Simple Data'!$B15 -> 0 | G70: ='Simple Data'!$C15 -> 6
D71: 15 | E71: ='Simple Data'!#REF! ->  | F71: ='Simple Data'!$B16 -> 0 | G71: ='Simple Data'!$C16 -> 10
D72: 16 | E72: ='Simple Data'!#REF! ->  | F72: ='Simple Data'!$B17 -> 0 | G72: ='Simple Data'!$C17 -> 9
D73: 17 | E73: ='Simple Data'!#REF! ->  | F73: ='Simple Data'!$B18 -> 0 | G73: ='Simple Data'!$C18 -> 9
D74: 18 | E74: ='Simple Data'!#REF! ->  | F74: ='Simple Data'!$B19 -> 0 | G74: ='Simple Data'!$C19 -> 9
D75: 19 | E75: ='Simple Data'!#REF! ->  | F75: ='Simple Data'!$B20 -> 0 | G75: ='Simple Data'!$C20 -> 10
D76: 20 | E76: ='Simple Data'!#REF! ->  | F76: ='Simple Data'!$B21 -> 0 | G76: ='Simple Data'!$C21 -> 10
D77: 21 | E77: ='Simple Data'!#REF! ->  | F77: ='Simple Data'!$B22 -> 0 | G77: ='Simple Data'!$C22 -> 10
D78: 22 | E78: ='Simple Data'!#REF! ->  | F78: ='Simple Data'!$B23 -> 0 | G78: ='Simple Data'!$C23 -> 11
D79: 23 | E79: ='Simple Data'!#REF! ->  | F79: ='Simple Data'!$B24 -> 0 | G79: ='Simple Data'!$C24 -> 10
D80: 24 | E80: ='Simple Data'!#REF! ->  | F80: ='Simple Data'!$B25 -> 0 | G80: ='Simple Data'!$C25 -> 10
D81: 25 | E81: ='Simple Data'!#REF! ->  | F81: ='Simple Data'!$B26 -> 0 | G81: ='Simple Data'!$C26 -> 10
D82: 26 | E82: ='Simple Data'!#REF! ->  | F82: ='Simple Data'!$B27 -> 0 | G82: ='Simple Data'!$C27 -> 10
D83: 27 | E83: ='Simple Data'!#REF! ->  | F83: ='Simple Data'!$B28 -> 0 | G83: ='Simple Data'!$C28 -> 12
D84: 28 | E84: ='Simple Data'!#REF! ->  | F84: ='Simple Data'!$B29 -> 0 | G84: ='Simple Data'!$C29 -> 10
D85: 29 | E85: ='Simple Data'!#REF! ->  | F85: ='Simple Data'!$B30 -> 0 | G85: ='Simple Data'!$C30 -> 13
D86: 30 | E86: ='Simple Data'!#REF! ->  | F86: ='Simple Data'!$B31 -> 0 | G86: ='Simple Data'!$C31 -> 10
D87: 31 | E87: ='Simple Data'!#REF! ->  | F87: ='Simple Data'!$B32 -> 0 | G87: ='Simple Data'!$C32 -> 12
D88: 32 | E88: ='Simple Data'!#REF! ->  | F88: ='Simple Data'!$B33 -> 0 | G88: ='Simple Data'!$C33 -> 10
D89: 33 | E89: ='Simple Data'!#REF! ->  | F89: ='Simple Data'!$B34 -> 0 | G89: ='Simple Data'!$C34 -> 12
D90: 34 | E90: ='Simple Data'!#REF! ->  | F90: ='Simple Data'!$B35 -> 0 | G90: ='Simple Data'!$C35 -> 11
D91: 35 | E91: ='Simple Data'!#REF! ->  | F91: ='Simple Data'!$B36 -> 0 | G91: ='Simple Data'!$C36 -> 12
D92: 36 | E92: ='Simple Data'!#REF! ->  | F92: ='Simple Data'!$B37 -> 0 | G92: ='Simple Data'!$C37 -> 14
D93: 37 | E93: ='Simple Data'!#REF! ->  | F93: ='Simple Data'!$B38 -> 0 | G93: ='Simple Data'!$C38 -> 12
D94: 38 | E94: ='Simple Data'!#REF! ->  | F94: ='Simple Data'!$B39 -> 0 | G94: ='Simple Data'!$C39 -> 18
D95: 39 | E95: ='Simple Data'!#REF! ->  | F95: ='Simple Data'!$B40 -> 0 | G95: ='Simple Data'!$C40 -> 12
D96: 40 | E96: ='Simple Data'!#REF! ->  | F96: ='Simple Data'!$B41 -> 0 | G96: ='Simple Data'!$C41 -> 18
D97: 41 | E97: ='Simple Data'!#REF! ->  | F97: ='Simple Data'!$B42 -> 0 | G97: ='Simple Data'!$C42 -> 12
D98: 42 | E98: ='Simple Data'!#REF! ->  | F98: ='Simple Data'!$B43 -> 0 | G98: ='Simple Data'!$C43 -> 16
D99: 43 | E99: ='Simple Data'!#REF! ->  | F99: ='Simple Data'!$B44 -> 0 | G99: ='Simple Data'!$C44 -> 13
D100: 44 | E100: ='Simple Data'!#REF! ->  | F100: ='Simple Data'!$B45 -> 0 | G100: ='Simple Data'!$C45 -> 14
D101: 45 | E101: ='Simple Data'!#REF! ->  | F101: ='Simple Data'!$B46 -> 0 | G101: ='Simple Data'!$C46 -> 14
D102: 46 | E102: ='Simple Data'!#REF! ->  | F102: ='Simple Data'!$B47 -> 0 | G102: ='Simple Data'!$C47 -> 15
D103: 47 | E103: ='Simple Data'!#REF! ->  | F103: ='Simple Data'!$B48 -> 0 | G103: ='Simple Data'!$C48 -> 18
D104: 48 | E104: ='Simple Data'!#REF! ->  | F104: ='Simple Data'!$B49 -> 0 | G104: ='Simple Data'!$C49 -> 15
D105: 49 | E105: ='Simple Data'!#REF! ->  | F105: ='Simple Data'!$B50 -> 0 | G105: ='Simple Data'!$C50 -> 19
D106: 50 | E106: ='Simple Data'!#REF! ->  | F106: ='Simple Data'!$B51 -> 0 | G106: ='Simple Data'!$C51 -> 15
D107: 51 | E107: ='Simple Data'!#REF! ->  | F107: ='Simple Data'!$B52 -> 0 | G107: ='Simple Data'!$C52 -> 20
D108: 52 | E108: ='Simple Data'!#REF! ->  | F108: ='Simple Data'!$B53 -> 0 | G108: ='Simple Data'!$C53 -> 15
D109: 53 | E109: ='Simple Data'!#REF! ->  | F109: ='Simple Data'!$B54 -> 0 | G109: ='Simple Data'!$C54 -> 21
D110: 54 | E110: ='Simple Data'!#REF! ->  | F110: ='Simple Data'!$B55 -> 0 | G110: ='Simple Data'!$C55 -> 16
D111: 55 | E111: ='Simple Data'!#REF! ->  | F111: ='Simple Data'!$B56 -> 0 | G111: ='Simple Data'!$C56 -> 21
D112: 56 | E112: ='Simple Data'!#REF! ->  | F112: ='Simple Data'!$B57 -> 0 | G112: ='Simple Data'!$C57 -> 15
D113: 57 | E113: ='Simple Data'!#REF! ->  | F113: ='Simple Data'!$B58 -> 0 | G113: ='Simple Data'!$C58 -> 20
D114: 58 | E114: ='Simple Data'!#REF! ->  | F114: ='Simple Data'!$B59 -> 0 | G114: ='Simple Data'!$C59 -> 16
D115: 59 | E115: ='Simple Data'!#REF! ->  | F115: ='Simple Data'!$B60 -> 0 | G115: ='Simple Data'!$C60 -> 22
D116: 60 | E116: ='Simple Data'!#REF! ->  | F116: ='Simple Data'!$B61 -> 0 | G116: ='Simple Data'!$C61 -> 19
D117: 61 | E117: ='Simple Data'!#REF! ->  | F117: ='Simple Data'!$B62 -> 0 | G117: ='Simple Data'!$C62 -> 21
D118: 62 | E118: ='Simple Data'!#REF! ->  | F118: ='Simple Data'!$B63 -> 0 | G118: ='Simple Data'!$C63 -> 21
D119: 63 | E119: ='Simple Data'!#REF! ->  | F119: ='Simple Data'!$B64 -> 0 | G119: ='Simple Data'!$C64 -> 22
D120: 64 | E120: ='Simple Data'!#REF! ->  | F120: ='Simple Data'!$B65 -> 0 | G120: ='Simple Data'!$C65 -> 25
D121: 65 | E121: ='Simple Data'!#REF! ->  | F121: ='Simple Data'!$B66 -> 0 | G121: ='Simple Data'!$C66 -> 21
D122: 66 | E122: ='Simple Data'!#REF! ->  | F122: ='Simple Data'!$B67 -> 0 | G122: ='Simple Data'!$C67 -> 28
D123: 67 | E123: ='Simple Data'!#REF! ->  | F123: ='Simple Data'!$B68 -> 0 | G123: ='Simple Data'!$C68 -> 22
D124: 68 | E124: ='Simple Data'!#REF! ->  | F124: ='Simple Data'!$B69 -> 1 | G124: ='Simple Data'!$C69 -> 31
D125: 69 | E125: ='Simple Data'!#REF! ->  | F125: ='Simple Data'!$B70 -> 0 | G125: ='Simple Data'!$C70 -> 22
D126: 70 | E126: ='Simple Data'!#REF! ->  | F126: ='Simple Data'!$B71 -> 0 | G126: ='Simple Data'!$C71 -> 33
D127: 71 | E127: ='Simple Data'!#REF! ->  | F127: ='Simple Data'!$B72 -> 0 | G127: ='Simple Data'!$C72 -> 21
D128: 72 | E128: ='Simple Data'!#REF! ->  | F128: ='Simple Data'!$B73 -> 0 | G128: ='Simple Data'!$C73 -> 30
D129: 73 | E129: ='Simple Data'!#REF! ->  | F129: ='Simple Data'!$B74 -> 0 | G129: ='Simple Data'!$C74 -> 23
D130: 74 | E130: ='Simple Data'!#REF! ->  | F130: ='Simple Data'!$B75 -> 2 | G130: ='Simple Data'!$C75 -> 28
D131: 75 | E131: ='Simple Data'!#REF! ->  | F131: ='Simple Data'!$B76 -> 0 | G131: ='Simple Data'!$C76 -> 28
D132: 76 | E132: ='Simple Data'!#REF! ->  | F132: ='Simple Data'!$B77 -> 0 | G132: ='Simple Data'!$C77 -> 25
D133: 77 | E133: ='Simple Data'!#REF! ->  | F133: ='Simple Data'!$B78 -> 0 | G133: ='Simple Data'!$C78 -> 38
D134: 78 | E134: ='Simple Data'!#REF! ->  | F134: ='Simple Data'!$B79 -> 0 | G134: ='Simple Data'!$C79 -> 25
D135: 79 | E135: ='Simple Data'!#REF! ->  | F135: ='Simple Data'!$B80 -> 0 | G135: ='Simple Data'!$C80 -> 37
D136: 80 | E136: ='Simple Data'!#REF! ->  | F136: ='Simple Data'!$B81 -> 0 | G136: ='Simple Data'!$C81 -> 24
D137: 81 | E137: ='Simple Data'!#REF! ->  | F137: ='Simple Data'!$B82 -> 0 | G137: ='Simple Data'!$C82 -> 36
D138: 82 | E138: ='Simple Data'!#REF! ->  | F138: ='Simple Data'!$B83 -> 0 | G138: ='Simple Data'!$C83 -> 28
D139: 83 | E139: ='Simple Data'!#REF! ->  | F139: ='Simple Data'!$B84 -> 1 | G139: ='Simple Data'!$C84 -> 31
D140: 84 | E140: ='Simple Data'!#REF! ->  | F140: ='Simple Data'!$B85 -> 1 | G140: ='Simple Data'!$C85 -> 41
D141: 85 | E141: ='Simple Data'!#REF! ->  | F141: ='Simple Data'!$B86 -> 1 | G141: ='Simple Data'!$C86 -> 28
D142: 86 | E142: ='Simple Data'!#REF! ->  | F142: ='Simple Data'!$B87 -> 1 | G142: ='Simple Data'!$C87 -> 35
D143: 87 | E143: ='Simple Data'!#REF! ->  | F143: ='Simple Data'!$B88 -> 1 | G143: ='Simple Data'!$C88 -> 42
D144: 88 | E144: ='Simple Data'!#REF! ->  | F144: ='Simple Data'!$B89 -> 1 | G144: ='Simple Data'!$C89 -> 33
D145: 89 | E145: ='Simple Data'!#REF! ->  | F145: ='Simple Data'!$B90 -> 1 | G145: ='Simple Data'!$C90 -> 49
D146: 90 | E146: ='Simple Data'!#REF! ->  | F146: ='Simple Data'!$B91 -> 1 | G146: ='Simple Data'!$C91 -> 32
D147: 91 | E147: ='Simple Data'!#REF! ->  | F147: ='Simple Data'!$B92 -> 1 | G147: ='Simple Data'!$C92 -> 54
D148: 92 | E148: ='Simple Data'!#REF! ->  | F148: ='Simple Data'!$B93 -> 1 | G148: ='Simple Data'!$C93 -> 33
D149: 93 | E149: ='Simple Data'!#REF! ->  | F149: ='Simple Data'!$B94 -> 3 | G149: ='Simple Data'!$C94 -> 54
D150: 94 | E150: ='Simple Data'!#REF! ->  | F150: ='Simple Data'!$B95 -> 1 | G150: ='Simple Data'!$C95 -> 32
D151: 95 | E151: ='Simple Data'!#REF! ->  | F151: ='Simple Data'!$B96 -> 2 | G151: ='Simple Data'!$C96 -> 50
D152: 96 | E152: ='Simple Data'!#REF! ->  | F152: ='Simple Data'!$B97 -> 1 | G152: ='Simple Data'!$C97 -> 32
D153: 97 | E153: ='Simple Data'!#REF! ->  | F153: ='Simple Data'!$B98 -> 1 | G153: ='Simple Data'!$C98 -> 42
D154: 98 | E154: ='Simple Data'!#REF! ->  | F154: ='Simple Data'!$B99 -> 2 | G154: ='Simple Data'!$C99 -> 32
D155: 99 | E155: ='Simple Data'!#REF! ->  | F155: ='Simple Data'!$B100 -> 1 | G155: ='Simple Data'!$C100 -> 45
D156: 100 | E156: ='Simple Data'!#REF! ->  | F156: ='Simple Data'!$B101 -> 2 | G156: ='Simple Data'!$C101 -> 40
D157: 101 | E157: ='Simple Data'!#REF! ->  | F157: ='Simple Data'!$B102 -> 2 | G157: ='Simple Data'!$C102 -> 45
D158: 102 | E158: ='Simple Data'!#REF! ->  | F158: ='Simple Data'!$B103 -> 2 | G158: ='Simple Data'!$C103 -> 51
D159: 103 | E159: ='Simple Data'!#REF! ->  | F159: ='Simple Data'!$B104 -> 0 | G159: ='Simple Data'!$C104 -> 44
D160: 104 | E160: ='Simple Data'!#REF! ->  | F160: ='Simple Data'!$B105 -> 2 | G160: ='Simple Data'!$C105 -> 59
D161: 105 | E161: ='Simple Data'!#REF! ->  | F161: ='Simple Data'!$B106 -> 2 | G161: ='Simple Data'!$C106 -> 44
D162: 106 | E162: ='Simple Data'!#REF! ->  | F162: ='Simple Data'!$B107 -> 3 | G162: ='Simple Data'!$C107 -> 68
D163: 107 | E163: ='Simple Data'!#REF! ->  | F163: ='Simple Data'!$B108 -> 3 | G163: ='Simple Data'!$C108 -> 42
D164: 108 | E164: ='Simple Data'!#REF! ->  | F164: ='Simple Data'!$B109 -> 2 | G164: ='Simple Data'!$C109 -> 75
D165: 109 | E165: ='Simple Data'!#REF! ->  | F165: ='Simple Data'!$B110 -> 2 | G165: ='Simple Data'!$C110 -> 42
D166: 110 | E166: ='Simple Data'!#REF! ->  | F166: ='Simple Data'!$B111 -> 4 | G166: ='Simple Data'!$C111 -> 72
D167: 111 | E167: ='Simple Data'!#REF! ->  | F167: ='Simple Data'!$B112 -> 3 | G167: ='Simple Data'!$C112 -> 41
D168: 112 | E168: ='Simple Data'!#REF! ->  | F168: ='Simple Data'!$B113 -> 3 | G168: ='Simple Data'!$C113 -> 68
D169: 113 | E169: ='Simple Data'!#REF! ->  | F169: ='Simple Data'!$B114 -> 3 | G169: ='Simple Data'!$C114 -> 41
D170: 114 | E170: ='Simple Data'!#REF! ->  | F170: ='Simple Data'!$B115 -> 2 | G170: ='Simple Data'!$C115 -> 66
D171: 115 | E171: ='Simple Data'!#REF! ->  | F171: ='Simple Data'!$B116 -> 3 | G171: ='Simple Data'!$C116 -> 41
D172: 116 | E172: ='Simple Data'!#REF! ->  | F172: ='Simple Data'!$B117 -> 3 | G172: ='Simple Data'!$C117 -> 64
D173: 117 | E173: ='Simple Data'!#REF! ->  | F173: ='Simple Data'!$B118 -> 3 | G173: ='Simple Data'!$C118 -> 41
D174: 118 | E174: ='Simple Data'!#REF! ->  | F174: ='Simple Data'!$B119 -> 3 | G174: ='Simple Data'!$C119 -> 63
D175: 119 | E175: ='Simple Data'!#REF! ->  | F175: ='Simple Data'!$B120 -> 4 | G175: ='Simple Data'!$C120 -> 45
D176: 120 | E176: ='Simple Data'!#REF! ->  | F176: ='Simple Data'!$B121 -> 3 | G176: ='Simple Data'!$C121 -> 62
D177: 121 | E177: ='Simple Data'!#REF! ->  | F177: ='Simple Data'!$B122 -> 4 | G177: ='Simple Data'!$C122 -> 60
D178: 122 | E178: ='Simple Data'!#REF! ->  | F178: ='Simple Data'!$B123 -> 4 | G178: ='Simple Data'!$C123 -> 59
D179: 123 | E179: ='Simple Data'!#REF! ->  | F179: ='Simple Data'!$B124 -> 3 | G179: ='Simple Data'!$C124 -> 73
D180: 124 | E180: ='Simple Data'!#REF! ->  | F180: ='Simple Data'!$B125 -> 4 | G180: ='Simple Data'!$C125 -> 58
D181: 125 | E181: ='Simple Data'!#REF! ->  | F181: ='Simple Data'!$B126 -> 4 | G181: ='Simple Data'!$C126 -> 84
D182: 126 | E182: ='Simple Data'!#REF! ->  | F182: ='Simple Data'!$B127 -> 4 | G182: ='Simple Data'!$C127 -> 56
D183: 127 | E183: ='Simple Data'!#REF! ->  | F183: ='Simple Data'!$B128 -> 4 | G183: ='Simple Data'!$C128 -> 95
D184: 128 | E184: ='Simple Data'!#REF! ->  | F184: ='Simple Data'!$B129 -> 5 | G184: ='Simple Data'!$C129 -> 51
D185: 129 | E185: ='Simple Data'!#REF! ->  | F185: ='Simple Data'!$B130 -> 4 | G185: ='Simple Data'!$C130 -> 86
D186: 130 | E186: ='Simple Data'!#REF! ->  | F186: ='Simple Data'!$B131 -> 4 | G186: ='Simple Data'!$C131 -> 50
D187: 131 | E187: ='Simple Data'!#REF! ->  | F187: ='Simple Data'!$B132 -> 4 | G187: ='Simple Data'!$C132 -> 83
D188: 132 | E188: ='Simple Data'!#REF! ->  | F188: ='Simple Data'!$B133 -> 5 | G188: ='Simple Data'!$C133 -> 49
D189: 133 | E189: ='Simple Data'!#REF! ->  | F189: ='Simple Data'!$B134 -> 5 | G189: ='Simple Data'!$C134 -> 81
D190: 134 | E190: ='Simple Data'!#REF! ->  | F190: ='Simple Data'!$B135 -> 5 | G190: ='Simple Data'!$C135 -> 49
D191: 135 | E191: ='Simple Data'!#REF! ->  | F191: ='Simple Data'!$B136 -> 5 | G191: ='Simple Data'!$C136 -> 76
D192: 136 | E192: ='Simple Data'!#REF! ->  | F192: ='Simple Data'!$B137 -> 6 | G192: ='Simple Data'!$C137 -> 59
D193: 137 | E193: ='Simple Data'!#REF! ->  | F193: ='Simple Data'!$B138 -> 5 | G193: ='Simple Data'!$C138 -> 76
D194: 138 | E194: ='Simple Data'!#REF! ->  | F194: ='Simple Data'!$B139 -> 6 | G194: ='Simple Data'!$C139 -> 106
D195: 139 | E195: ='Simple Data'!#REF! ->  | F195: ='Simple Data'!$B140 -> 6 | G195: ='Simple Data'!$C140 -> 60
D196: 140 | E196: ='Simple Data'!#REF! ->  | F196: ='Simple Data'!$B141 -> 6 | G196: ='Simple Data'!$C141 -> 109
D197: 141 | E197: ='Simple Data'!#REF! ->  | F197: ='Simple Data'!$B142 -> 7 | G197: ='Simple Data'!$C142 -> 59
D198: 142 | E198: ='Simple Data'!#REF! ->  | F198: ='Simple Data'!$B143 -> 6 | G198: ='Simple Data'!$C143 -> 103
D199: 143 | E199: ='Simple Data'!#REF! ->  | F199: ='Simple Data'!$B144 -> 7 | G199: ='Simple Data'!$C144 -> 55
D200: 144 | E200: ='Simple Data'!#REF! ->  | F200: ='Simple Data'!$B145 -> 6 | G200: ='Simple Data'!$C145 -> 86
D201: 145 | E201: ='Simple Data'!#REF! ->  | F201: ='Simple Data'!$B146 -> 7 | G201: ='Simple Data'!$C146 -> 68
D202: 146 | E202: ='Simple Data'!#REF! ->  | F202: ='Simple Data'!$B147 -> 6 | G202: ='Simple Data'!$C147 -> 82
D203: 147 | E203: ='Simple Data'!#REF! ->  | F203: ='Simple Data'!$B148 -> 7 | G203: ='Simple Data'!$C148 -> 89
D204: 148 | E204: ='Simple Data'!#REF! ->  | F204: ='Simple Data'!$B149 -> 6 | G204: ='Simple Data'!$C149 -> 74
D205: 149 | E205: ='Simple Data'!#REF! ->  | F205: ='Simple Data'!$B150 -> 6 | G205: ='Simple Data'!$C150 -> 119
D206: 150 | E206: ='Simple Data'!#REF! ->  | F206: ='Simple Data'!$B151 -> 9 | G206: ='Simple Data'!$C151 -> 60
D207: 151 | E207: ='Simple Data'!#REF! ->  | F207: ='Simple Data'!$B152 -> 6 | G207: ='Simple Data'!$C152 -> 97
D208: 152 | E208: ='Simple Data'!#REF! ->  | F208: ='Simple Data'!$B153 -> 9 | G208: ='Simple Data'!$C153 -> 58
D209: 153 | E209: ='Simple Data'!#REF! ->  | F209: ='Simple Data'!$B154 -> 7 | G209: ='Simple Data'!$C154 -> 93
D210: 154 | E210: ='Simple Data'!#REF! ->  | F210: ='Simple Data'!$B155 -> 9 | G210: ='Simple Data'!$C155 -> 81
D211: 155 | E211: ='Simple Data'!#REF! ->  | F211: ='Simple Data'!$B156 -> 6 | G211: ='Simple Data'!$C156 -> 91
D212: 156 | E212: ='Simple Data'!#REF! ->  | F212: ='Simple Data'!$B157 -> 6 | G212: ='Simple Data'!$C157 -> 105
D213: 157 | E213: ='Simple Data'!#REF! ->  | F213: ='Simple Data'!$B158 -> 7 | G213: ='Simple Data'!$C158 -> 86
D214: 158 | E214: ='Simple Data'!#REF! ->  | F214: ='Simple Data'!$B159 -> 7 | G214: ='Simple Data'!$C159 -> 130
D215: 159 | E215: ='Simple Data'!#REF! ->  | F215: ='Simple Data'!$B160 -> 11 | G215: ='Simple Data'!$C160 -> 97
D216: 160 | E216: ='Simple Data'!#REF! ->  | F216: ='Simple Data'!$B161 -> 9 | G216: ='Simple Data'!$C161 -> 92
D217: 161 | E217: ='Simple Data'!#REF! ->  | F217: ='Simple Data'!$B162 -> 10 | G217: ='Simple Data'!$C162 -> 120
D218: 162 | E218: ='Simple Data'!#REF! ->  | F218: ='Simple Data'!$B163 -> 10 | G218: ='Simple Data'!$C163 -> 82
D219: 163 | E219: ='Simple Data'!#REF! ->  | F219: ='Simple Data'!$B164 -> 9 | G219: ='Simple Data'!$C164 -> 134
D220: 164 | E220: ='Simple Data'!#REF! ->  | F220: ='Simple Data'!$B165 -> 10 | G220: ='Simple Data'!$C165 -> 110
D221: 165 | E221: ='Simple Data'!#REF! ->  | F221: ='Simple Data'!$B166 -> 11 | G221: ='Simple Data'!$C166 -> 84
D222: 166 | E222: ='Simple Data'!#REF! ->  | F222: ='Simple Data'!$B167 -> 11 | G222: ='Simple Data'!$C167 -> 145
D223: 167 | E223: ='Simple Data'!#REF! ->  | F223: ='Simple Data'!$B168 -> 12 | G223: ='Simple Data'!$C168 -> 99
D224: 168 | E224: ='Simple Data'!#REF! ->  | F224: ='Simple Data'!$B169 -> 11 | G224: ='Simple Data'!$C169 -> 90
D225: 169 | E225: ='Simple Data'!#REF! ->  | F225: ='Simple Data'!$B170 -> 11 | G225: ='Simple Data'!$C170 -> 129
... 32 more rows
